[Event "Rudolf Teschner GT 2022"]
[Site "Berlin"]
[Date "2022.05.26"]
[Round "2.2"]
[White "Spiess, Gunter"]
[Black "Werner, Bernd-Michael"]
[Result "1-0"]
[ECO "B06"]
[WhiteElo "2388"]
[BlackElo "1998"]
[Annotator "TA"]
[PlyCount "91"]
[EventDate "2022.05.25"]
[EventType "swiss"]
[EventCountry "GER"]
[SourceTitle "playchess.com"]
[Source "ChessBase"]
[SourceQuality "1"]
[TimeControl "5400+30"]

{[%evp 9,91,10,55,58,67,66,67,70,72,71,72,72,72,60,78,85,70,68,71,68,69,43,41,39,65,27,35,25,39,6,69,59,58,57,64,71,72,55,60,60,95,101,104,77,81,81,79,77,255,263,504,466,591,558,411,383,491,502,361,142,143,142,135,137,128,0,0,0,0,0,0,0,0,0,0,0,0,0,0,0,0,0,0,0]} 1. Nf3 {[%emt 0:00:05]} g6 {[%emt 0:00:27]} 2. d4 {[%emt 0:00:06][%cal Bd2d4,Bd4d5][%mdl 32]} Bg7 {[%emt 0:01:23]} 3. e4 {[%emt 0:01:46]} d6 {[%emt 0:01:16]} 4. Bc4 {[%emt 0:01:22]} c5 {[%emt 0:11:47]} 5. c3 {[%emt 0:11:05]} Nc6 {[%emt 0:17:41]} 6. d5 {[%emt 0:22:30] [#] B06: Modern Defence.} Ne5 $146 {[%emt 0:01:45]} ({Predecessor:} 6... Nb8 7. h3 Nf6 8. Nbd2 O-O 9. O-O Bd7 10. a4 Ne8 11. Re1 Nc7 12. Nf1 Be8 {0-1 (43) Kleibel,U (2153)-Timagin,P (2335) Ortenburg 2019}) 7. Nxe5 dxe5 {[%emt 0:01:26]} 8. Be3 {[%emt 0:02:23] White is slightly better.} b6 {[%emt 0:01:27]} 9. Bb5+ {[%emt 0:02:51]} Bd7 {[%emt 0:00:07]} 10. Bxd7+ {[%emt 0:00:16]} Qxd7 {[%emt 0:00:05]} 11. c4 {[%emt 0:00:16]} Nf6 {[%emt 0:01:10][%cal Bg8f6,Bf6e8,Be8d6][%mdl 32]} 12. Nc3 {[%emt 0:00:30]} O-O {[%emt 0:02:23]} 13. O-O {[%emt 0:01:54]} Ne8 {[%emt 0:00:05]} 14. Qd3 {[%emt 0:01:13]} Nd6 {[%emt 0:03:01]} 15. a3 {[%emt 0:00:48]} f5 {[%emt 0:00:45]} 16. f3 {[%emt 0:01:06]} Rac8 {[%emt 0:03:21]} 17. exf5 {[%emt 0:08:56]} gxf5 {[%emt 0:01:00]} 18. Rae1 {[%emt 0:00:32]} Rf7 {[%emt 0:03:13]} 19. Re2 {[%emt 0:02:32]} e4 {[%emt 0:05:08]} (19... Rcf8 $11) 20. fxe4 $14 {[%emt 0:00:35]} fxe4 {[%emt 0:00:21]} ({Not} 20... Bxc3 21. Qxc3 Nxe4 22. Qe5 $16) 21. Nxe4 {[%emt 0:03:35] Black must now prevent Rxf7.} Rxf1+ {[%emt 0:00:14]} 22. Kxf1 {[%emt 0:00:01]} Qf5+ {[%emt 0:01:47]} 23. Bf2 {[%emt 0:02:15]} Rf8 $1 {[%emt 0:09:15]} 24. Qc2 {[%emt 0:06:22]} Qh5 {[%emt 0:07:36]} 25. Kg1 {[%emt 0:03:05]} Nf5 {[%emt 0:08:21]} 26. Ng3 {[%emt 0:00:33]} Nxg3 {[%emt 0:00:29]} 27. hxg3 {[%emt 0:01:34]} Rf6 {[%emt 0:04:59]} 28. Re4 {[%emt 0:00:00]} Qf7 $2 {[%emt 0:00:50]} (28... Rh6 $16 29. Rh4 Qg5) 29. Qe2 $18 {[%emt 0:00:00]} Rxf2 $2 {[%emt 0:00:51]} (29... Kf8 30. b4 cxb4 31. axb4 Rd6) 30. Qxf2 {[%emt 0:00:00]} Bd4 {[%emt 0:00:26]} 31. Rxd4 {[%emt 0:00:00]} cxd4 {[%emt 0:02:21]} 32. Qxd4 {[%emt 0:00:09][%mdl 4096] [#] Endgame aiming for b4. KQ-KQ} Qg6 {[%emt 0:02:25]} 33. b4 {[%emt 0:01:02]} Qxg3 {[%emt 0:01:08]} 34. Qe4 $2 {[%emt 0:01:45]} (34. c5 $18 {and the rest is easy.}) 34... Qxa3 $16 {[%emt 0:01:40]} 35. Qxe7 {[%emt 0:00:03]} Qc1+ {[%emt 0:00:41]} 36. Kh2 {[%emt 0:00:05] White is more active.} Qxc4 {[%emt 0:01:30] [#]} 37. Qg5+ {[%emt 0:01:23]} ({Much weaker is} 37. Qxa7 $6 Qh4+ 38. Kg1 Qe1+ 39. Kh2 Qh4+ 40. Kg1 Qe1+ 41. Kh2 Qh4+ $11) (37. d6 $1 $16 {[%cal Rd6d7]} Qf4+ 38. Kh3 Qh6+ 39. Kg3 Qg6+ 40. Kh4 Qh6+ 41. Kg4 Qg6+ 42. Kh4 Qh6+ 43. Kg4 Qg6+ 44. Kh4) 37... Kf7 $11 {[%emt 0:00:32] The position is equal.} 38. Qf5+ {[%emt 0:00:08]} Ke7 {[%emt 0:00:40]} 39. Qe6+ {[%emt 0:00:05]} Kd8 {[%emt 0:00:25]} 40. Qd6+ {[%emt 0:00:56]} Kc8 {[%emt 0:00:52]} 41. Qf8+ {[%emt 0:00:11]} Kd7 {[%emt 0:01:07]} 42. Qf7+ {[%emt 0:00:18]} Kd8 {[%emt 0:00:09] ...Qc7+ is the strong threat.} (42... Kd6 43. Qe6+ Kc7 44. d6+ Kc6 45. Qxc4+ Kxd6 46. Qd3+ Ke5 47. Qxh7) 43. Qg8+ {[%emt 0:01:28]} Kd7 {[%emt 0:00:17]} 44. Qe6+ {[%emt 0:00:36]} Kd8 {[%emt 0:00:05]} 45. Qd6+ {[%emt 0:00:05]} Kc8 {[%emt 0:00:26] And now ...Qc7 would win.} 46. Qe6+ {[%emt 0:00:12][%mdl 32768] Black defended with fortune.  Weighted Error Value: White=0.13 (very precise) /Black=0.29 (precise) . Loss on time!?} 1-0

[Event "Rudolf Teschner GT 2022"]
[Site "Berlin"]
[Date "2022.05.26"]
[Round "2.3"]
[White "Sabrowski, Uwe"]
[Black "Florstedt, Johannes"]
[Result "0-1"]
[ECO "D85"]
[WhiteElo "2031"]
[BlackElo "2365"]
[Annotator "TA"]
[PlyCount "88"]
[EventDate "2022.05.25"]
[EventType "swiss"]
[EventCountry "GER"]
[SourceTitle "playchess.com"]
[Source "ChessBase"]
[SourceQuality "1"]
[TimeControl "5400+30"]

{[%evp 19,88,0,0,-2,0,0,0,0,0,0,0,-20,-7,-7,-16,-13,-32,-16,-20,-13,-20,-73,-62,-69,-80,-104,-102,-102,-77,-143,-135,-153,-141,-168,-173,-174,-157,-159,-140,-201,-186,-254,-239,-215,-221,-392,-378,-529,-341,-333,-281,-279,-388,-413,-372,-329,-97,-133,-128,-1205,-1197,-1158,-1020,-1528,-1454,-1453,-1377,-1197,-843,-29983,-29984]} 1. d4 {[%emt 0:01:03]} Nf6 {[%emt 0:01:03]} 2. c4 {[%emt 0:00:00]} g6 {[%emt 0:00:04]} 3. Nc3 {[%emt 0:00:00]} d5 {[%emt 0:00:06]} 4. cxd5 {[%emt 0:00:47]} Nxd5 {[%emt 0:00:07]} 5. e4 {[%emt 0:01:10]} Nxc3 {[%emt 0:00:05]} 6. bxc3 {[%emt 0:00:12]} Bg7 {[%emt 0:00:06]} 7. Nf3 {[%emt 0:01:12]} c5 {[%emt 0:00:07]} 8. Rb1 {[%emt 0:01:13]} O-O {[%emt 0:00:30]} 9. Be2 {[%emt 0:02:51]} b6 {[%emt 0:06:48]} 10. Be3 {[%emt 0:07:56]} Bb7 {[%emt 0:06:36]} 11. Bd3 {[%emt 0:18:24] D85: Exchange Grünfeld: Unusual White 7th moves and lines with 7 Nf3.} e6 {[%emt 0:09:29]} 12. O-O {[%emt 0:06:47]} cxd4 13. cxd4 {[%emt 0:00:25] The position is equal.} ({Of course not} 13. Bxd4 Nd7 $15) 13... Nc6 {[%emt 0:04:15][%cal Rc6d4,Bb8c6,Bc6a5,Ba5c4,Bc4e3][%mdl 32]} 14. Qa4 {[%emt 0:13:36] [#]} a6 $146 {[%emt 0:11:39]} ({Predecessor:} 14... Qd7 15. Ba6 Bxa6 16. Qxa6 f5 17. d5 exd5 18. exd5 Qxd5 19. Rfd1 Qe6 20. Ng5 Qf6 {0-1 (73) Medic,M (2265)-Zelic,M (2310) Zagreb 1993}) 15. Be2 {[%emt 0:09:55]} b5 {[%emt 0:00:16]} 16. Qd1 {[%emt 0:00:23]} Na5 {[%emt 0:02:05]} 17. Bd3 {[%emt 0:07:09]} Qd7 {[%emt 0:03:09]} 18. Qe2 {[%emt 0:04:48]} Rac8 {[%emt 0:04:43]} 19. Rfd1 {[%emt 0:03:14]} Nc4 {[%emt 0:00:28]} 20. Rbc1 {[%emt 0:05:08]} (20. Bf4 $11 {keeps the balance.}) 20... Nxe3 $17 {[%emt 0:01:31]} 21. fxe3 {[%emt 0:02:48]} Qd6 {[%emt 0:02:28]} 22. e5 {[%emt 0:01:59]} Qa3 {[%emt 0:00:10]} 23. Rxc8 {[%emt 0:00:40]} Rxc8 {[%emt 0:00:07]} 24. Rd2 {[%emt 0:00:20]} ({White should try} 24. h4) 24... Bh6 {[%emt 0:01:44]} 25. Kf2 {[%emt 0:00:20]} Rc3 {[%emt 0:00:53]} 26. Ne1 {[%emt 0:01:14]} Bd5 {[%emt 0:02:03]} 27. h4 {[%emt 0:02:12]} Rc1 {[%emt 0:10:13]} 28. g4 {[%emt 0:00:57]} Qa4 {[%emt 0:02:50] 0x0.001259dd218fdp-1022s more active pieces.} 29. g5 {[%emt 0:00:59]} (29. Kg3 $17) 29... Bf8 $19 {[%emt 0:01:15][%cal Bh6f8,Bf8b4,Bb4c3][%mdl 32] Strongly threatening ...Bb4.} 30. Ng2 {[%emt 0:02:36]} (30. Bc2 {keeps fighting.} Qa5 31. Bb3) 30... Bb4 {[%emt 0:07:50]} 31. Rb2 {[%emt 0:00:25]} Ra1 {[%emt 0:03:54]} 32. Bc2 $2 {[%emt 0:01:48]} (32. Rc2) 32... Qa3 {[%emt 0:02:59]} 33. Bb3 {[%emt 0:00:09]} Bc3 {[%emt 0:01:08] A strong pair of Bishops.} 34. Rc2 {[%emt 0:00:16]} Bxb3 {[%emt 0:00:33]} 35. axb3 {[%emt 0:00:14]} Qxb3 {[%emt 0:00:06]} 36. Qd3 {[%emt 0:00:37]} b4 {[%emt 0:00:16] ...Qb1 is the strong threat.} 37. Qe4 {[%emt 0:01:43][%cal Oh4h5] [#]} Ra2 $2 {[%emt 0:03:29]} (37... Qb1 $1 $19 {is more deadly.} 38. Kg3 Qg1) 38. Qa8+ $17 {[%emt 0:02:55]} Kg7 {[%emt 0:00:06] The board is on fire.} 39. Re2 {[%emt 0:00:02][%mdl 8192] White does not recover from this.} (39. Rxa2 $17 Qxa2+ 40. Kg3) 39... Rxe2+ $19 {[%emt 0:03:23]} 40. Kxe2 {[%emt 0:00:01]} Qa2+ {[%emt 0:01:41]} 41. Kf1 {[%emt 0:01:12]} Qb1+ {[%emt 0:02:58]} 42. Kf2 {[%emt 0:00:07]} Qf5+ {[%emt 0:00:14]} 43. Nf4 {[%emt 0:00:12] [#]} Bxd4 $1 {[%emt 0:00:13][%mdl 512] ( -> ...Qxf4+)} 44. Qxa6 {[%emt 0:01:17]} (44. Ke2 Qxe5) 44... Qxf4+ {[%emt 0:00:08] Weighted Error Value: White=0.75/Black=0.38} 0-1

[Event "Rudolf Teschner GT 2022"]
[Site "Berlin"]
[Date "2022.05.26"]
[Round "2.4"]
[White "Tschernatsch, Johannes"]
[Black "Kamenskyi, Dmytro"]
[Result "1-0"]
[ECO "C09"]
[WhiteElo "2358"]
[BlackElo "1998"]
[Annotator "TA"]
[PlyCount "111"]
[EventDate "2022.05.25"]
[EventType "swiss"]
[EventCountry "GER"]
[SourceTitle "playchess.com"]
[Source "ChessBase"]
[SourceQuality "1"]
[TimeControl "5400+30"]

{[%evp 21,111,25,33,16,30,25,24,3,14,1,4,0,8,0,14,0,0,0,0,-22,0,0,0,0,0,-33,-15,-19,-11,-18,12,0,8,12,33,30,16,15,25,19,23,11,32,12,50,37,63,72,73,68,66,61,127,58,183,103,186,184,179,179,169,159,314,325,355,359,349,347,327,350,346,354,391,392,393,399,584,583,566,554,576,310,811,770,1628,1450,1790,1770,1540,934,904,823]} 1. e4 {[%emt 0:00:02]} e6 {[%emt 0:00:09]} 2. d4 {[%emt 0:00:04]} d5 {[%emt 0:00:08]} 3. Nd2 {[%emt 0:00:05]} c5 {[%emt 0:00:14]} 4. Ngf3 {[%emt 0:00:06]} Nc6 {[%emt 0:00:17]} 5. exd5 {[%emt 0:00:43]} exd5 {[%emt 0:00:07]} 6. Bb5 {[%emt 0:00:07]} Bd6 {[%emt 0:00:24]} 7. dxc5 {[%emt 0:00:40]} Bxc5 {[%emt 0:00:07]} 8. O-O {[%emt 0:00:06]} Nge7 {[%emt 0:00:16]} 9. Nb3 {[%emt 0:00:35]} Bd6 {[%emt 0:00:15]} 10. Nbd4 {[%emt 0:00:33]} O-O {[%emt 0:00:31] 10...h6 might become the main line.} 11. c3 {[%emt 0:00:07]} Bg4 {[%emt 0:01:04]} 12. Qc2 {[%emt 0:01:00] C09: French Tarrasch: 3...c5 4 exd5 exd5 5 Ngf3 Nc6.} Nxd4 {[%emt 0:03:45]} 13. Nxd4 {[%emt 0:00:43][%cal Bf3d4,Bd4f5,Bf5g3,Bg3h5][%mdl 32]} Nc6 {[%emt 0:00:05]} 14. Nf5 {[%emt 0:09:32] Prevents Qh4. White has an edge.} Bc7 {[%emt 0:07:11] [#]} 15. Be3 $146 {[%emt 0:09:09]} ({Predecessor:} 15. h3 Bxf5 16. Qxf5 Qd6 17. g3 Qe6 18. Qxe6 fxe6 19. Be3 a6 20. Be2 h6 21. f4 Rad8 22. Rad1 {1-0 (38) Brobakken,G (2124)-Misdom,J ICCF email 2002}) 15... Qf6 {[%emt 0:07:15]} 16. Ng3 {[%emt 0:01:33]} Rfe8 {[%emt 0:09:11]} 17. Rae1 {[%emt 0:01:36]} h6 {[%emt 0:07:06]} 18. Bd3 {[%emt 0:08:27]} Rad8 {[%emt 0:14:52]} 19. Qa4 {[%emt 0:06:23]} Bd7 {[%emt 0:02:31]} 20. Nh5 {[%emt 0:19:22]} Qe5 {[%emt 0:03:52][%csl Gc7][%cal Re5h2] [#]} 21. Qh4 {[%emt 0:02:56] And now Bd2 would win. Active counter play!} Qe7 {[%emt 0:11:55]} 22. Qxe7 {[%emt 0:01:38]} Rxe7 {[%emt 0:00:46]} 23. Bf4 {[%emt 0:02:06]} Rxe1 {[%emt 0:01:42]} 24. Rxe1 {[%emt 0:00:21]} Bb6 {[%emt 0:00:21]} 25. a3 {[%emt 0:07:22]} Be6 {[%emt 0:04:06]} 26. b4 {[%emt 0:01:12]} Bg4 {[%emt 0:07:07]} 27. Ng3 {[%emt 0:00:37]} Kf8 {[%emt 0:07:22]} 28. Nf5 {[%emt 0:02:55]} Bxf5 {[%emt 0:01:28]} 29. Bxf5 {[%emt 0:00:03]} g5 {[%emt 0:01:08]} 30. Bd2 {[%emt 0:02:57][%cal Oh2h4]} Kg7 {[%emt 0:00:48]} 31. g4 {[%emt 0:02:17]} Kf6 {[%emt 0:00:29]} 32. Kg2 {[%emt 0:00:58]} Bc7 {[%emt 0:04:02] Prevents f4.} 33. h4 $1 {[%emt 0:01:08]} gxh4 {[%emt 0:01:03][%cal Oh6h5]} 34. Bxh6 {[%emt 0:01:11]} Rh8 {[%emt 0:00:13] Inhibits Bh7.} 35. Be3 {[%emt 0:00:55]} h3+ {[%emt 0:00:12]} 36. Kh1 {[%emt 0:00:22]} Be5 {[%emt 0:01:25] [#] White now steadily converts the win.} (36... Rg8 $14) 37. Rc1 {[%emt 0:04:12]} (37. Bd2 $1 $16) 37... Rd8 {[%emt 0:03:04]} (37... Kg7 $14) 38. b5 {[%emt 0:06:29]} (38. f4 $18 Bc7 39. b5) 38... Na5 {[%emt 0:00:24]} (38... Ne7 $16) 39. f4 $18 {[%emt 0:00:59]} Bb8 {[%emt 0:00:12]} 40. Bd4+ {[%emt 0:01:23]} Ke7 {[%emt 0:00:09]} 41. Re1+ {[%emt 0:00:55]} Kd6 $2 {[%emt 0:01:06]} (41... Kf8 $16 42. Bf6 Re8 43. Bg7+ Kxg7 44. Rxe8 Bxf4) 42. Kh2 {[%emt 0:05:00]} Nb3 {[%emt 0:01:34]} 43. Bf6 {[%emt 0:00:15] This bishop pair is nice.} ({Not} 43. Kxh3 Nxd4 44. cxd4 a6 $14) 43... Rg8 {[%emt 0:00:10]} 44. Kxh3 {[%emt 0:00:25]} Kc5 {[%emt 0:00:19]} 45. Kg3 {[%emt 0:01:01]} Bd6 {[%emt 0:01:33]} 46. a4 {[%emt 0:00:43]} Kc4 {[%emt 0:00:44]} 47. g5 {[%emt 0:00:38][%cal Bg4g5,Bg5g6][%mdl 32]} Nc5 {[%emt 0:00:32]} 48. Rd1 {[%emt 0:01:51] Hoping for Rd4+.} Ne6 {[%emt 0:00:38] Prevents Rd4+.} (48... b6 $142 49. Rd4+ Kb3 50. Rxd5 Bb8) 49. Bxe6 {[%emt 0:00:32]} fxe6 {[%emt 0:00:04][%mdl 4096] Endgame KRB-KRB} 50. Re1 {[%emt 0:00:16]} Re8 {[%emt 0:00:27]} 51. g6 {[%emt 0:00:07]} Kb3 $2 {[%emt 0:00:28]} (51... Rg8 52. g7 (52. Rxe6 Rxg6+ 53. Kf3 Bc5 $16) 52... Bf8) 52. g7 {[%emt 0:00:21] White is clearly winning.} Kxa4 {[%emt 0:00:22]} 53. Rh1 {[%emt 0:00:24] Rh8 is the strong threat.} Rg8 {[%emt 0:00:37]} 54. Rh8 {[%emt 0:00:09]} Rxg7+ {[%emt 0:00:03]} 55. Bxg7 {[%emt 0:00:04]} Kxb5 {[%emt 0:00:09]} 56. Rh6 {[%emt 0:00:07] Weighted Error Value: White=0.17 (very precise) /Black=0.28 (precise)} 1-0

[Event "Rudolf Teschner GT 2022"]
[Site "Berlin"]
[Date "2022.05.26"]
[Round "2.5"]
[White "Zackrisson, Peter"]
[Black "Langrock, Hannes"]
[Result "0-1"]
[ECO "B40"]
[WhiteElo "2015"]
[BlackElo "2351"]
[Annotator "TA"]
[PlyCount "104"]
[EventDate "2022.05.25"]
[EventType "swiss"]
[EventCountry "GER"]
[SourceTitle "playchess.com"]
[Source "ChessBase"]
[SourceQuality "1"]
[TimeControl "5400+30"]

{[%evp 9,104,10,0,0,0,0,0,0,0,0,0,0,0,-2,0,0,0,0,0,-5,0,0,0,0,7,-2,0,-4,-7,-29,-29,-97,-49,-47,-70,-123,-132,-160,-150,-153,-147,-173,-96,-107,-85,-133,-145,-184,-185,-170,-89,-109,-105,-182,-183,-183,-165,-187,-164,-164,-133,-153,-183,-185,-91,-140,-89,-156,-121,-129,-128,-119,-133,-222,-214,-220,-227,-216,-219,-242,-242,-389,-406,-379,-396,-393,-388,-530,-500,-995,-986,-981,-913,-969,-947,-993,-1001]} 1. e4 {[%emt 0:00:03]} c5 {[%emt 0:00:20]} 2. Nf3 {[%emt 0:00:18]} e6 {[%emt 0:00:24]} 3. g3 {[%emt 0:00:28]} Nc6 {[%emt 0:01:13]} 4. Bg2 {[%emt 0:00:17]} Nf6 {[%emt 0:00:49]} 5. Qe2 {[%emt 0:00:19]} e5 {[%emt 0:01:36]} 6. c3 {[%emt 0:00:54] B40: Sicilian: 2...e6, Unusual lines.} Be7 {[%emt 0:05:51]} 7. O-O {[%emt 0:00:39]} O-O {[%emt 0:00:46]} 8. Na3 {[%emt 0:01:04] The position is equal. 8.Na3 scores better than 8.Rd1.} Re8 {[%emt 0:01:02]} 9. Nc4 {[%emt 0:00:20]} Bf8 {[%emt 0:01:27][%cal Of6e4]} 10. d3 {[%emt 0:04:42]} h6 {[%emt 0:01:30]} 11. Ne3 {[%emt 0:06:50]} d5 {[%emt 0:10:21]} 12. exd5 {[%emt 0:03:29]} Nxd5 {[%emt 0:00:08]} 13. Nxd5 {[%emt 0:00:23]} Qxd5 {[%emt 0:00:06]} 14. Nd2 {[%emt 0:01:51]} Qe6 {[%emt 0:04:25]} 15. Nc4 {[%emt 0:04:13]} Qg6 {[%emt 0:09:45]} 16. Be4 {[%emt 0:03:59]} Bf5 {[%emt 0:03:23][%cal Bc8f5,Bf5g6,Bg6d3][%mdl 32] [#]} 17. a4 $146 {[%emt 0:01:12]} ({Predecessor:} 17. Qf3 Bg4 18. Bxg6 Bxf3 19. Be4 Bg4 20. Re1 f6 21. b3 Rac8 22. Bb2 Red8 23. Ne3 {0-1 (57) Prueske,W (2046)-Coathup,R (2125) Douglas 2017}) 17... Rad8 {[%emt 0:03:39]} 18. Re1 {[%emt 0:00:49]} Qe6 {[%emt 0:06:35]} 19. Ne3 {[%emt 0:03:37]} Bg6 {[%emt 0:01:08]} 20. Qf3 {[%emt 0:08:15] Prevents f5.} (20. Qg4 $11 {remains equal.}) 20... Rxd3 {[%emt 0:06:09]} ({Black should play} 20... Na5 $17 21. Bf5 Qa6 22. Bxg6 Qxg6) 21. Bxd3 $15 {[%emt 0:01:53]} Bxd3 {[%emt 0:00:08]} 22. Qg4 {[%emt 0:14:08]} ({Better is} 22. Qd5 $15 Qxd5 23. Nxd5) 22... f5 $1 $17 {[%emt 0:19:20][%mdl 1024] Black has strong compensation.} 23. Qh5 {[%emt 0:02:20]} g6 $1 {[%emt 0:00:52]} 24. Qd1 {[%emt 0:08:57]} e4 {[%emt 0:02:10]} 25. f4 {[%emt 0:00:32]} Rd8 {[%emt 0:03:56]} (25... Na5 $1 $19 26. Nf1 Nb3) 26. a5 {[%emt 0:11:29]} Be7 {[%emt 0:02:15] Black is much more active.} 27. Qa4 {[%emt 0:01:53]} (27. Ng2 $142) 27... Rd7 {[%emt 0:00:44]} 28. Ng2 {[%emt 0:00:38] [#]} Bd8 $1 {[%emt 0:03:16]} 29. Be3 {[%emt 0:11:08]} Qd5 {[%emt 0:03:09]} ({Stronger than} 29... Bxa5 30. Bxc5 Bc7 31. Red1 $11) (29... Nxa5 $19 30. Kh1 b6) 30. Qa3 {[%emt 0:01:28]} Nxa5 {[%emt 0:02:53]} 31. Rad1 {[%emt 0:01:33]} (31. Qxc5 $17 Qxc5 32. Bxc5) 31... b6 $19 {[%emt 0:00:52]} 32. Bf2 {[%emt 0:00:57]} Be7 {[%emt 0:00:50]} 33. Ne3 {[%emt 0:00:37]} Qe6 {[%emt 0:00:10]} 34. Qa4 {[%emt 0:01:46]} Rd8 {[%emt 0:01:24]} 35. Kh1 {[%emt 0:00:56]} Kf7 {[%emt 0:00:43]} 36. h3 {[%emt 0:01:39] [#]} Bd6 {[%emt 0:02:31]} (36... h5 $1 $19 37. Kh2 a6) 37. Kh2 {[%emt 0:00:42]} ({White should try} 37. b4 Qb3 38. Qa1) 37... Bc7 {[%emt 0:00:34]} (37... Qb3 $142 38. Qxb3+ Nxb3) 38. Ng2 {[%emt 0:01:13]} (38. b4 $142 Qb3 39. Qa1 cxb4 40. cxb4 Qxb4 41. Rc1) 38... Qb3 {[%emt 0:00:26]} 39. Qxb3+ {[%emt 0:01:16]} Nxb3 {[%emt 0:00:02]} 40. g4 {[%emt 0:00:36]} Na5 {[%emt 0:01:15]} 41. Be3 {[%emt 0:00:32]} (41. gxf5 $17 {was worth a try.} gxf5 42. Bg3) 41... Nc4 {[%emt 0:00:17]} 42. Bc1 {[%emt 0:00:05]} a5 {[%emt 0:00:31][%cal Ba7a5,Ba5a4][%mdl 32]} 43. gxf5 {[%emt 0:00:07]} gxf5 {[%emt 0:00:02]} 44. Nh4 {[%emt 0:00:12]} e3 {[%emt 0:00:50]} 45. Ng2 {[%emt 0:01:39]} (45. Rxe3 $142 Bxf4+ 46. Rg3 Bxg3+ 47. Kxg3) 45... e2 {[%emt 0:00:22]} 46. Rxd3 {[%emt 0:00:05]} Rxd3 {[%emt 0:00:02]} 47. Rxe2 {[%emt 0:00:01]} a4 {[%emt 0:00:56][%cal Oa4a3]} 48. Re1 {[%emt 0:00:36]} Nd2 {[%emt 0:01:21] Black is clearly winning.} 49. Re2 {[%emt 0:01:34]} (49. Bxd2 $142 Rxd2 50. Kg3) 49... Nf3+ {[%emt 0:00:24]} 50. Kg3 {[%emt 0:00:08]} Nd4+ {[%emt 0:00:15]} 51. Re3 {[%emt 0:00:16]} Ne2+ {[%emt 0:00:09]} 52. Kf2 {[%emt 0:00:09]} Nxc1 {[%emt 0:00:07] Weighted Error Value: White=0.33/Black=0.12 (very precise)} 0-1

[Event "Rudolf Teschner GT 2022"]
[Site "Berlin"]
[Date "2022.05.26"]
[Round "2.6"]
[White "Klenburg, Michael"]
[Black "Zieger, Bernd"]
[Result "1-0"]
[ECO "C02"]
[WhiteElo "2346"]
[BlackElo "1975"]
[Annotator "TA"]
[PlyCount "91"]
[EventDate "2022.05.25"]
[EventType "swiss"]
[EventCountry "GER"]
[SourceTitle "playchess.com"]
[Source "ChessBase"]
[SourceQuality "1"]
[TimeControl "5400+30"]

{[%evp 18,91,29,23,73,71,77,58,51,25,79,74,82,57,75,38,54,22,229,228,229,225,198,200,203,183,221,218,258,269,275,273,272,248,351,373,360,344,622,311,556,333,340,313,361,356,422,432,497,502,574,557,619,616,697,666,624,620,754,709,1392,1371,29973,29971,29973,6602,29982,29983,29986,29986,29989,29990,29990,29991,29993,29989]} 1. e4 {[%emt 0:00:15]} e6 {[%emt 0:00:17]} 2. d4 {[%emt 0:00:15]} d5 {[%emt 0:00:07]} 3. e5 {[%emt 0:00:18]} c5 {[%emt 0:00:09]} 4. c3 {[%emt 0:00:10]} Nc6 {[%emt 0:00:12]} 5. Nf3 {[%emt 0:00:13]} Qb6 {[%emt 0:00:10]} 6. Be2 {[%emt 0:00:21]} cxd4 {[%emt 0:00:34]} 7. cxd4 {[%emt 0:00:11]} Nge7 {[%emt 0:02:43]} 8. Na3 {[%emt 0:01:00]} Nf5 {[%emt 0:00:36]} 9. Nc2 {[%emt 0:00:19]} Bb4+ {[%emt 0:03:13]} 10. Kf1 {[%emt 0:00:49]} Bd7 {[%emt 0:01:47] C02: French: Advance Variation.} (10... h5 $11) 11. g4 $16 {[%emt 0:01:31]} Nh6 {[%emt 0:00:48]} 12. h3 {[%emt 0:00:38]} Bf8 {[%emt 0:03:45] White is slightly better.} 13. Rb1 {[%emt 0:02:09][%cal Ob2b4] [#]} Nb4 $146 {[%emt 0:03:51]} (13... f6 $11 {remains equal.}) ({Predecessor:} 13... g6 14. Bg5 Bg7 15. Qd2 Ng8 16. b4 f6 17. Be3 Nb8 18. Kg2 Ne7 19. b5 O-O {1-0 (30) Quere,A (1990)-Boissonnier,K (1630) France 2001}) 14. Nxb4 {[%emt 0:03:20]} Qxb4 {[%emt 0:00:08]} 15. a3 {[%emt 0:05:38]} Qb6 {[%emt 0:00:12]} 16. Be3 {[%emt 0:03:48]} Bb5 {[%emt 0:00:56]} 17. Kg2 {[%emt 0:00:29]} f5 $2 {[%emt 0:07:40] Black cannot hold the game after this.} (17... Ng8 $11 {and Black stays safe.}) 18. Bxb5+ $18 {[%emt 0:02:58]} Qxb5 {[%emt 0:00:07]} 19. Bxh6 {[%emt 0:00:15]} gxh6 {[%emt 0:00:05]} 20. gxf5 {[%emt 0:00:17]} exf5 {[%emt 0:02:03]} 21. Qc2 {[%emt 0:02:11] Strongly threatening Rhc1.} Rg8+ {[%emt 0:02:44]} 22. Kh2 {[%emt 0:00:25]} Qd7 {[%emt 0:00:50]} 23. Rhg1 {[%emt 0:02:45]} Rxg1 24. Rxg1 {[%emt 0:00:21][%cal Oe5e6]} ({Don't do} 24. Kxg1 $6 Be7 25. Qd2 Qe6 $16) 24... Rc8 {[%emt 0:01:02]} 25. Qd3 {[%emt 0:00:16][%cal Oe5e6] aiming for e6!} Be7 {[%emt 0:02:29]} (25... Qe7 $142 26. Ne1 (26. Qxf5 Rc6 $16) 26... Qf7) 26. Rg7 {[%emt 0:03:26] [#] Nh4 is the strong threat.} Qe6 {[%emt 0:07:25]} 27. Rxh7 {[%emt 0:16:26]} Kf8 $2 {[%emt 0:01:30]} (27... Kd8 28. Qd2 Qg8) 28. Rh8+ {[%emt 0:01:38]} Kf7 $2 {[%emt 0:00:17]} (28... Kg7) 29. Rxc8 {[%emt 0:00:15]} Qxc8 {[%emt 0:00:05][%mdl 4096] Endgame KQB-KQN} 30. Qd2 {[%emt 0:01:42]} Kg6 {[%emt 0:00:38]} 31. Ne1 {[%emt 0:01:30]} b5 {[%emt 0:03:20]} 32. Ng2 {[%emt 0:01:04]} Bg5 {[%emt 0:01:06]} 33. f4 {[%emt 0:00:12]} Be7 {[%emt 0:00:15]} 34. Ne3 {[%emt 0:00:13]} Kf7 {[%emt 0:03:53]} 35. Nxd5 {[%emt 0:00:48]} a5 {[%emt 0:00:15]} 36. Ne3 {[%emt 0:01:06]} b4 {[%emt 0:00:10]} 37. axb4 {[%emt 0:02:06]} axb4 {[%emt 0:01:37]} 38. d5 {[%emt 0:01:19][%cal Bd4d5,Bd5d6,Bd6d7][%mdl 32]} Bc5 {[%emt 0:01:18]} 39. Qc2 {[%emt 0:00:53]} Kg6 {[%emt 0:02:24]} 40. d6 {[%emt 0:02:33]} b3 {[%emt 0:00:27]} 41. Qxb3 {[%emt 0:01:00]} (41. Qc4 $142 h5 42. e6 Qe8 43. Qxc5 Qxe6 {[#]} 44. Qxf5+ $1 {[%mdl 512]} Qxf5 45. Nxf5 Kxf5 46. d7) 41... Bxe3 {[%emt 0:00:12]} 42. Qxe3 {[%emt 0:00:06] White mates.} Qc2+ {[%emt 0:00:09]} 43. Kg3 {[%emt 0:00:06]} Qxb2 {[%emt 0:00:27]} 44. d7 {[%emt 0:00:26]} Qb8 {[%emt 0:00:27]} 45. e6 {[%emt 0:00:11]} Kf6 {[%emt 0:06:47]} 46. Qe5+ {[%emt 0:00:18] Weighted Error Value: White=0.27 (precise) /Black=0.95} 1-0